bitfinex/quotes_ETHUSD_20250123
["timestamp","ask_amount","ask_price","bid_price","bid_amount"]
[1737639957932,3.09409,3232.0,3231.4,3.46337811]
[1737639958424,3.09419,3231.9,3231.4,0.36874811]
[1737639959029,3.09402,3232.1,3231.4,3.46337811]
[1737639959209,3.09409,3232.0,3231.4,3.46337811]
[1737639959405,3.09409,3232.0,3231.5,0.67938592]
[1737639959613,3.09442,3231.7,3231.4,0.36874811]
[1737639959811,3.09425,3231.8,3231.3,0.414]
[1737639961110,3.09425,3231.8,3231.0,6.01147109]
[1737639961111,3.09452,3231.6,3231.0,6.01147109]
[1737639961744,3.09452,3231.6,3231.0,2.91648109]
[1737639961948,3.09473,3231.3,3231.0,0.68321511]
[1737639962152,3.09473,3231.3,3230.9,0.8205]
[1737639962295,3.0946,3231.5,3230.9,0.8205]
[1737639962636,3.09458,3231.5,3230.9,0.8205]
[1737639962823,3.09458,3231.5,3230.9,3.91561]
[1737639963024,3.09458,3231.5,3231.0,2.91648109]
[1737639963223,3.0944,3231.7,3231.1,6.87288911]
[1737639963422,3.0944,3231.7,3231.1,3.77803911]
[1737639963927,3.72344683,3231.7,3231.1,4.19203911]
[1737639964106,3.09456,3231.5,3231.1,0.414]
[1737639964635,3.09446,3231.6,3231.1,0.414]
[1737639964800,3.09444,3231.6,3231.1,0.414]
[1737639965001,3.0946,3231.5,3230.9,0.8205]
[1737639965301,3.09409,3232.0,3231.0,2.91648109]
[1737639965501,3.09409,3232.0,3231.5,3.09451]
[1737639965906,3.09409,3232.0,3231.1,1.12154811]
[1737639965907,0.62242333,3232.6,3231.9,2.91648109]
[1737639966108,0.1091328,3233.4,3232.6,2.91648109]
[1737639966469,0.1091328,3233.4,3232.9,6.00958109]
[1737639966824,0.1091328,3233.4,3233.1,3.09296]
[1737639967002,0.1091328,3233.4,3233.0,3.09303]
[1737639967207,0.1091328,3233.4,3233.0,3.09308]
[1737639967655,0.1091328,3233.4,3232.9,2.91648109]
[1737639967806,3.2018728,3233.4,3232.9,2.91648109]
[1737639968129,0.1091328,3233.4,3233.1,3.09292]
[1737639968439,0.1091328,3233.4,3233.3,3.09281]
[1737639968652,0.1091328,3233.4,3233.3,3.90781]
[1737639971018,2.8e-06,3233.4,3233.3,7.45781]
[1737639971408,2.8e-06,3233.4,3233.3,3.90781]
[1737639971612,2.8e-06,3233.4,3233.3,4.89953011]
[1737639971836,2.8e-06,3233.4,3233.3,3.09281]
[1737639972113,2.8e-06,3233.4,3233.3,0.414]
[1737639972420,3.09243,3233.7,3232.9,0.7968]
[1737639972826,3.09243,3233.7,3232.5,2.91648109]
[1737639972827,3.09295,3233.2,3232.5,6.01005109]
[1737639973031,0.54204583,3233.8,3232.3,4.26716]
[1737639973032,3.09318,3233.0,3232.3,4.26716]
[1737639973237,3.09293,3233.2,3232.5,6.00998109]
[1737639973469,3.09302,3233.1,3232.5,6.00998109]
[1737639974016,3.09302,3233.1,3232.5,3.0935]
[1737639974180,3.09284,3233.3,3232.4,3.520366]
[1737639974325,3.09312,3233.0,3232.4,3.520366]
[1737639974522,3.09323,3232.9,3232.5,0.78066566]
[1737639974773,3.09329,3232.8,3232.5,0.78066566]
[1737639974961,3.09329,3232.8,3232.4,0.426716]
[1737639975160,3.0931,3233.0,3232.4,0.426716]
[1737639975490,3.09313,3233.0,3232.4,3.520376]
[1737639975781,3.0932,3232.9,3232.4,0.426716]
[1737639976325,0.542,3233.4,3232.4,0.426716]
[1737639976521,0.542,3233.8,3233.0,3.52689061]
[1737639976769,0.542,3234.1,3233.2,3.09285]
[1737639976967,3.09229,3233.9,3233.2,3.09285]
[1737639977167,0.542,3234.1,3233.0,3.92624]
[1737639977374,3.09253,3233.6,3233.0,3.92624]
[1737639977571,3.09262,3233.5,3233.0,1.535152]
[1737639978086,3.09295,3233.2,3232.7,0.7503]
[1737639978374,6.71676293,3234.2,3232.7,0.7503]
[1737639978375,3.09255,3233.6,3232.7,0.7503]
[1737639978577,3.0924,3233.8,3233.1,3.09298]
[1737639978744,3.0924,3233.8,3233.2,3.09288]
[1737639979082,3.0924,3233.8,3233.2,0.833]
[1737639979230,3.0924,3233.8,3233.2,3.9259]
[1737639979425,3.0924,3233.8,3233.2,0.833]
[1737639979657,3.09247,3233.7,3233.2,0.833]
[1737639980281,3.09247,3233.7,3232.5,3.87420666]
[1737639980282,3.09279,3233.4,3232.8,3.09322]
[1737639980880,3.09282,3233.3,3232.8,3.09322]
[1737639981378,3.09263,3233.5,3232.8,3.09322]
[1737639981612,3.09263,3233.5,3232.9,3.0931]
[1737639981889,3.09263,3233.5,3232.8,3.09322]
[1737639981890,3.09264,3233.5,3233.0,3.0931]
[1737639982085,3.09228,3233.9,3233.0,3.711732]
[1737639982230,3.09245,3233.7,3233.1,0.7666]
[1737639982672,3.09288,3233.3,3232.8,0.7666]
[1737639982852,3.09265,3233.5,3232.8,0.7666]
[1737639983056,3.09265,3233.5,3232.8,3.85987]
[1737639983261,3.09265,3233.5,3232.8,3.85981]
[1737639983488,3.09265,3233.5,3232.9,3.09317]
[1737639983678,3.09273,3233.4,3232.8,3.85988]
[1737639983829,0.542,3233.4,3232.8,0.385988]
[1737639984029,3.09282,3233.3,3232.6,3.09348]
[1737639984243,3.09266,3233.5,3232.8,3.09328]
[1737639984446,3.09287,3233.3,3232.5,1.2297]
[1737639984671,3.09312,3233.0,3232.5,0.8157]
[1737639984971,3.0933,3232.8,3232.5,0.8157]
[1737639985157,3.09311,3233.0,3232.5,0.8157]
[1737639985472,3.09319,3232.9,3232.5,0.8157]
[1737639986133,3.09285,3233.3,3232.6,0.8016]
[1737639986338,6.09272,3233.4,3232.8,3.09323]
[1737639986575,3.0,3233.4,3232.9,3.09317]
[1737639986773,3.0,3233.4,3232.7,3.0933]
[1737639986953,3.0,3233.4,3232.9,3.09315]
[1737639987140,6.09272,3233.4,3232.7,6.18662]
[1737639987337,3.09224,3233.9,3232.6,0.8016]
[1737639987537,3.09313,3233.0,3232.6,0.8016]
[1737639987942,3.09328,3232.9,3232.6,0.8016]
[1737639988168,6.18656,3232.9,3232.6,0.8016]
[1737639988370,3.09328,3232.9,3232.6,0.8016]
[1737639988574,6.18655,3232.9,3232.6,0.8016]
[1737639988875,3.09327,3232.9,3232.6,0.8016]
[1737639989075,3.09338,3232.7,3232.6,0.8016]
[1737639989309,3.09327,3232.9,3232.6,0.8016]
[1737639989678,3.09304,3233.1,3232.6,0.8016]
[1737639990009,3.09312,3233.0,3232.6,0.8016]
[1737639990205,3.09284,3233.3,3232.6,1.191123]
[1737639990381,6.18572,3233.3,3232.6,3.89507]
[1737639990975,3.09307,3233.1,3232.6,0.8016]
[1737639991285,3.09307,3233.1,3232.6,3.89508]
[1737639991479,3.09307,3233.1,3232.8,0.0031]
[1737639991708,3.09319,3232.9,3232.8,0.0031]
[1737639993112,3.09307,3233.1,3232.8,0.0031]
[1737639993311,0.542,3233.4,3232.8,0.0031]
[1737639993604,3.09319,3232.9,3232.8,0.0031]
[1737639996076,4.31540181,3232.9,3232.8,0.0031]
[1737639997306,3.09319,3232.9,3232.8,0.0031]
[1737639999302,3.63519,3232.9,3232.8,0.0031]
[1737639999717,3.09319,3232.9,3232.8,0.0031]
[1737640000301,3.24284194,3233.7,3232.8,0.0031]
[1737640000302,3.63436,3233.8,3232.9,0.7974]
[1737640000521,3.0926,3233.6,3233.0,3.09303]
[1737640000861,3.0926,3233.6,3233.1,0.98942759]
[1737640001174,3.09277,3233.4,3233.1,0.98942759]
[1737640001324,3.09296,3233.2,3232.9,0.7974]
[1737640001668,3.09277,3233.4,3232.9,0.7974]
[1737640001848,3.09281,3233.3,3232.9,0.7974]
[1737640002051,3.09277,3233.4,3232.9,0.7974]
[1737640002225,3.09277,3233.4,3233.0,0.389372]
[1737640002427,3.09283,3233.3,3233.0,0.389372]
[1737640002728,3.093,3233.1,3232.9,0.7974]
[1737640002958,6.18574,3233.3,3232.9,0.7974]
[1737640003151,3.093,3233.1,3232.9,0.7974]
[1737640003455,3.09284,3233.3,3232.9,0.7974]
[1737640004062,3.09267,3233.5,3232.9,0.7974]
[1737640004277,3.09274,3233.4,3233.0,0.698697]
[1737640004779,0.542,3233.8,3232.9,0.7974]
[1737640004780,3.09306,3233.1,3232.9,0.7974]
[1737640004982,0.542,3233.8,3232.9,0.7974]
[1737640004983,6.18576,3233.3,3232.9,0.7974]
[1737640005171,3.09298,3233.2,3232.9,0.7974]
[1737640005572,3.09301,3233.1,3232.9,0.7974]
[1737640005773,3.09301,3233.1,3232.8,0.0031]
[1737640005958,3.09319,3232.9,3232.8,0.0031]
[1737640006978,3.09301,3233.1,3232.8,0.0031]
[1737640007483,6.18609,3233.1,3232.8,0.0031]
[1737640007780,3.09301,3233.1,3232.8,0.0031]
[1737640008001,3.09287,3233.3,3232.8,0.0031]
[1737640008297,3.09291,3233.2,3232.8,0.391027]
[1737640008586,3.09294,3233.2,3232.8,0.391027]
[1737640008879,3.09291,3233.3,3232.8,0.391027]
[1737640009293,3.093,3233.1,3232.8,0.391027]
[1737640010071,3.09291,3233.3,3232.8,0.391027]
[1737640010370,3.09291,3233.3,3232.8,0.0031]
[1737640010889,3.09301,3233.1,3232.8,0.0031]
[1737640011521,3.09319,3232.9,3232.8,0.0031]
[1737640014233,3.0931,3233.0,3232.8,0.0031]
[1737640014532,3.09319,3232.9,3232.8,0.0031]
[1737640016669,3.71638597,3232.9,3232.8,0.0031]
[1737640020424,3.09319,3232.9,3232.8,0.0031]
[1737640022214,0.542,3233.7,3232.9,0.7587]
[1737640022388,3.09249,3233.7,3232.9,3.66938592]
[1737640022589,3.09275,3233.4,3233.0,0.36724859]
[1737640022801,0.542,3233.3,3232.8,0.0031]
[1737640023119,3.09301,3233.1,3232.8,0.0031]
[1737640023289,3.7251928,3233.6,3232.8,0.0031]
[1737640023683,3.09273,3233.4,3232.8,0.0031]
[1737640023898,3.09273,3233.4,3232.9,3.09317]
[1737640024084,3.09273,3233.4,3233.1,0.8254]
[1737640024424,0.6326028,3233.6,3233.1,0.8254]
[1737640024577,3.09271,3233.4,3232.8,0.0031]
[1737640024783,3.09319,3232.9,3232.8,0.0031]
[1737640024984,3.766019,3232.9,3232.8,0.0031]
[1737640025193,3.09319,3232.9,3232.8,0.0031]
[1737640027117,3.72672399,3232.9,3232.8,0.0031]
[1737640031202,7.26872399,3232.9,3232.8,0.0031]
[1737640031705,6.72672399,3232.9,3232.8,0.0031]
[1737640033432,6.09319,3232.9,3232.8,0.0031]
[1737640034042,3.0931,3233.1,3232.8,0.0031]
[1737640034242,3.09317,3233.0,3232.8,0.0031]
[1737640034545,3.09319,3232.9,3232.8,0.0031]
[1737640035505,3.0,3233.0,3232.8,0.0031]
[1737640035506,6.09296,3233.2,3232.8,0.0031]
[1737640035706,3.09296,3233.2,3232.9,0.7999]
[1737640035910,3.63427,3233.9,3232.9,0.7999]
[1737640036107,3.63427,3233.9,3232.8,0.0031]
[1737640036109,3.0931,3233.0,3232.8,0.0031]
[1737640036720,3.09319,3232.9,3232.8,0.0031]
[1737640037405,3.0931,3233.0,3232.8,0.0031]
[1737640037745,6.18629,3233.0,3232.8,0.0031]
[1737640038135,6.18628,3233.0,3232.8,0.0031]
[1737640038444,3.0931,3233.0,3232.8,0.0031]
[1737640038604,3.0931,3233.0,3232.9,0.774]
[1737640040546,3.09319,3232.9,3232.8,0.0031]
[1737640047384,0.62259071,3233.0,3232.8,0.0031]
[1737640047530,3.71574071,3233.0,3232.8,0.0031]
[1737640047839,3.09319,3232.9,3232.8,0.0031]
[1737640049361,3.09296,3233.2,3232.8,0.0031]
[1737640050026,6.18595,3233.2,3232.8,0.0031]
[1737640050457,3.09296,3233.2,3232.8,0.0031]
[1737640050762,3.09301,3233.1,3232.8,0.0031]
[1737640050962,3.09296,3233.2,3232.8,0.0031]
[1737640051182,0.542,3234.0,3232.9,0.8324]
[1737640051329,0.542,3234.2,3233.1,3.89279]
[1737640051531,3.09226,3233.9,3233.3,3.09274]
[1737640051776,3.71315968,3234.0,3233.4,0.7998]
[1737640052381,3.0,3233.7,3233.4,1.189054]
[1737640053399,3.09198,3234.2,3233.7,3.09236]
[1737640053554,3.63374,3234.5,3233.7,3.09236]
[1737640053555,3.09174,3234.5,3233.8,3.9184]
[1737640053754,0.542,3234.8,3233.8,0.8261]
[1737640053967,0.61270012,3234.4,3233.8,0.8261]
[1737640054256,3.09189,3234.3,3233.8,0.8261]
[1737640054961,3.09172,3234.5,3233.8,0.8261]
[1737640055170,3.0,3234.4,3233.9,3.09222]
[1737640055367,3.0,3234.4,3234.0,0.7932]
[1737640055564,3.71540162,3234.8,3234.2,0.7932]
[1737640055863,3.09121,3235.0,3234.3,3.09185]
[1737640055864,3.09128,3234.9,3234.3,3.09185]
[1737640056078,3.09128,3234.9,3234.4,0.7932]
[1737640057082,3.09128,3234.9,3234.4,3.88495]
[1737640057582,3.71746282,3235.1,3234.4,0.7932]
[1737640057761,3.09135,3234.9,3234.4,0.7932]
[1737640057960,3.09135,3234.9,3234.4,1.12232098]
[1737640058855,3.09135,3234.9,3234.4,4.21406098]
[1737640059472,3.09119,3235.0,3234.5,3.09165]
[1737640059653,3.09101,3235.2,3234.5,3.09165]
[1737640059947,3.09106,3235.2,3234.8,0.7828]
[1737640060487,0.6936655,3236.0,3235.1,3.09107]
[1737640060690,3.09026,3236.0,3235.4,3.87892]
[1737640060863,3.09026,3236.0,3235.4,3.87898]
[1737640061206,3.09012,3236.2,3235.4,3.87898]
[1737640061207,3.09012,3236.2,3235.6,3.87879]
[1737640061349,3.0897,3236.6,3235.7,0.7771]
[1737640061685,3.0897,3236.6,3235.5,2.91068592]
[1737640061686,0.1710219,3236.7,3236.2,3.09003]
[1737640061871,0.1710219,3236.7,3236.3,0.386713]
[1737640062049,3.2605819,3236.7,3236.3,0.386713]
[1737640062398,0.1710219,3236.7,3236.2,3.09002]
[1737640062681,0.1710219,3236.7,3236.1,0.7771]
[1737640062682,0.1710219,3236.7,3236.1,3.86723]
[1737640062892,3.2605919,3236.7,3236.1,0.7771]
[1737640063180,3.2605919,3236.7,3236.1,3.86717]
[1737640063181,0.1710219,3236.7,3236.1,3.86717]
[1737640063380,0.1710219,3236.7,3236.3,3.08994]
[1737640063699,3.2606119,3236.7,3236.4,0.308994]
[1737640063876,3.08967,3236.6,3236.1,0.7771]
[1737640064071,3.08992,3236.4,3236.1,0.7771]
[1737640064984,3.09004,3236.2,3236.0,0.411]
[1737640065272,3.09004,3236.2,3235.2,2.91068592]
[1737640065273,3.0,3236.5,3235.3,0.7751]
[1737640065491,3.09052,3235.7,3235.3,0.7751]
[1737640065785,3.0908,3235.4,3235.3,0.7751]
[1737640066156,3.09102,3235.2,3235.0,1.2106]
[1737640066382,3.09102,3235.2,3235.0,0.9594024]
[1737640066588,3.09043,3235.8,3235.0,0.9594024]
[1737640066754,3.09087,3235.4,3235.0,0.7996]
[1737640067455,3.09109,3235.1,3235.0,0.7996]
[1737640067660,3.09123,3235.0,3234.6,0.8025]
[1737640067991,3.09109,3235.1,3234.6,0.8025]
[1737640068187,3.09124,3235.0,3234.6,0.8025]
[1737640068351,3.542,3235.8,3234.6,4.16744802]
[1737640068551,3.09067,3235.6,3234.9,3.09122]
[1737640068789,3.09071,3235.5,3234.9,3.09122]
[1737640069199,3.09081,3235.4,3234.8,3.09136]
[1737640069696,3.09102,3235.2,3234.6,1.2567621]
[1737640069869,3.09121,3235.0,3234.7,0.43483921]
[1737640070191,3.09121,3235.0,3234.6,0.8025]
[1737640070392,3.09134,3234.9,3234.6,0.8025]
[1737640070596,3.09121,3235.0,3234.6,0.8025]
[1737640070796,3.09138,3234.8,3234.6,0.8025]
[1737640071292,3.09147,3234.7,3234.6,0.8025]
[1737640071488,3.09147,3234.7,3234.4,0.411]
[1737640071652,3.09157,3234.6,3234.3,0.7756]
[1737640071859,3.09147,3234.7,3234.3,3.68628592]
[1737640072059,3.0913,3234.9,3234.4,0.67782159]
[1737640072494,3.09124,3235.0,3234.4,0.67782159]
[1737640072896,3.09124,3235.0,3234.4,3.76951159]
[1737640073092,3.0,3235.2,3234.6,3.09156]
[1737640073299,0.60863866,3235.5,3234.7,0.7918]
[1737640073468,3.63222,3236.1,3235.4,3.09078]
[1737640073469,3.09038,3235.9,3235.4,3.09078]
[1737640073673,3.09004,3236.2,3235.4,3.09078]
[1737640073893,3.09004,3236.2,3235.6,3.86273]
[1737640074106,3.09015,3236.1,3235.6,0.7722]
[1737640074268,6.2606319,3236.7,3235.6,0.7722]
[1737640074269,3.08996,3236.3,3235.6,0.7722]
[1737640074468,3.08989,3236.4,3235.7,3.76783559]
[1737640074469,3.69945608,3236.4,3235.7,3.76783559]
[1737640074680,3.09,3236.3,3235.7,3.76783559]
[1737640075357,3.09005,3236.2,3235.7,3.76783559]
[1737640075799,0.1710219,3236.7,3235.7,3.76783559]
[1737640076101,3.0,3236.6,3235.9,3.09032]
[1737640076316,3.08986,3236.4,3236.0,0.90913659]
[1737640076498,3.08986,3236.4,3235.9,3.09032]
[1737640077002,3.08968,3236.6,3236.1,0.8313]
[1737640077208,3.08968,3236.6,3236.1,3.92143]
[1737640077371,3.08968,3236.6,3236.1,0.8313]
[1737640077567,0.1710219,3236.7,3236.2,3.09003]
[1737640077764,0.1710219,3236.7,3236.3,0.392133]
[1737640078409,0.1710219,3236.7,3236.6,3.08966]
[1737640078707,0.1710219,3236.7,3236.6,3.86346]
[1737640080274,0.1710219,3236.7,3236.6,7.41346]
[1737640080478,3.08821,3238.2,3237.0,3.08928]
[1737640080675,3.088,3238.4,3237.7,2.91068592]
[1737640080990,0.62673904,3238.6,3237.5,0.7659]
[1737640081199,0.62673904,3238.6,3237.2,3.08908]
[1737640081510,3.08861,3237.7,3237.2,3.08902]
[1737640081674,3.08866,3237.7,3237.3,0.67639059]
[1737640081874,3.08866,3237.7,3237.1,0.7642]
[1737640082404,3.0889,3237.4,3237.1,1.1742]
[1737640082610,3.08899,3237.3,3237.1,1.1742]
[1737640082783,3.08853,3237.8,3237.2,3.51684876]
[1737640083118,3.08838,3238.0,3237.4,3.08885]
[1737640083335,3.08838,3238.0,3237.5,0.308885]
[1737640083546,3.08843,3237.9,3237.5,0.308885]
[1737640083698,3.08838,3238.0,3237.3,3.0889]
[1737640083899,3.08838,3238.0,3237.4,3.08883]
[1737640084335,6.17633,3238.2,3237.5,3.08879]
[1737640084494,3.08826,3238.1,3237.5,3.08879]
[1737640084694,3.08836,3238.0,3237.2,6.60589876]
[1737640084999,3.08836,3238.0,3237.4,3.08882]
[1737640085209,3.08813,3238.2,3237.5,3.08879]
[1737640085739,3.08798,3238.4,3237.5,3.08879]
[1737640085895,0.542,3239.1,3237.7,3.51684876]
[1737640086091,3.08774,3238.7,3238.0,3.0883]
[1737640086320,0.62358874,3238.9,3238.0,3.705981]
[1737640086321,3.08778,3238.6,3238.0,3.705981]
[1737640086537,3.08791,3238.5,3238.0,0.617681]
[1737640086829,3.08791,3238.5,3237.8,3.08851]
[1737640086830,3.08765,3238.7,3237.6,0.813]
[1737640087003,3.08816,3238.2,3237.6,3.90163]
[1737640087204,3.08825,3238.1,3237.6,0.813]
[1737640087437,3.08845,3237.9,3237.6,0.813]
[1737640087732,3.08837,3238.0,3237.6,0.813]
[1737640088151,3.08815,3238.2,3237.6,0.813]
[1737640088351,3.08831,3238.1,3237.6,0.813]
[1737640088513,3.08805,3238.3,3237.6,1.244183]
[1737640088697,3.08805,3238.3,3237.6,4.332813]
[1737640089033,3.08832,3238.0,3237.6,1.244183]
[1737640089196,3.0885,3237.9,3237.6,0.813]
[1737640089694,3.08861,3237.7,3237.4,0.41]
[1737640089896,3.08858,3237.8,3237.3,0.7611]
[1737640090512,3.08834,3238.0,3237.3,0.7611]
[1737640090709,0.6266562,3238.4,3237.3,0.7611]
[1737640090936,3.08825,3238.1,3237.4,3.08886]
[1737640091260,3.08825,3238.1,3237.3,0.7611]
[1737640091261,3.08825,3238.1,3237.5,3.08871]
[1737640092528,3.08832,3238.0,3237.5,3.08871]
[1737640093147,3.08808,3238.3,3237.5,3.08871]
[1737640093328,3.08821,3238.2,3237.7,0.7991]
[1737640093758,3.08826,3238.1,3237.7,0.7991]
[1737640093958,3.08821,3238.2,3237.7,0.7991]
[1737640094125,3.08746,3238.9,3238.0,3.51684876]
[1737640094321,3.08759,3238.8,3238.2,0.7847]
[1737640094526,0.0008,3239.0,3238.4,3.51684876]
[1737640094766,3.08818,3239.0,3238.5,0.7847]
[1737640094966,0.0008,3239.0,3238.5,0.7847]
[1737640095137,0.0008,3239.0,3238.7,3.08756]
[1737640095341,0.0008,3239.0,3238.9,3.08746]
[1737640095538,0.0008,3239.0,3238.9,3.90396]
[1737640095863,0.1660219,3239.9,3239.1,0.8165]
[1737640096028,0.1660219,3239.9,3239.4,0.8165]
[1737640096227,3.08689,3239.5,3239.4,0.8165]
[1737640096476,3.08689,3239.5,3239.2,0.41]
[1737640096676,0.1660219,3239.9,3238.7,0.8165]
[1737640096885,0.1660219,3239.9,3238.8,3.08752]
[1737640096886,3.08691,3239.5,3238.8,3.08752]
[1737640097365,3.08712,3239.3,3238.7,3.90415]
[1737640097572,3.08712,3239.3,3238.8,0.43343049]
[1737640097870,3.08712,3239.3,3238.7,3.90415]
[1737640097871,3.08742,3239.0,3238.4,0.41]
[1737640098238,3.08742,3239.0,3238.4,3.49793]
[1737640098469,3.08719,3239.2,3238.4,3.49793]
[1737640098672,3.08738,3239.0,3238.3,0.8]
[1737640098860,3.08775,3238.6,3238.5,0.409]
[1737640099066,3.08775,3238.6,3238.3,0.8]
[1737640099429,3.08759,3238.8,3238.3,0.8]
[1737640099834,3.08786,3238.5,3238.3,0.8]
[1737640100071,3.08772,3238.7,3238.3,0.8]
[1737640100275,3.087,3239.4,3238.3,0.8]
[1737640100574,3.08793,3238.5,3238.3,0.8]
[1737640100731,3.08794,3238.4,3238.2,0.409]
[1737640101138,3.08804,3238.3,3237.9,0.7691]
[1737640101482,3.08788,3238.5,3237.9,0.7691]
[1737640101690,3.08788,3238.5,3237.9,3.85749]
[1737640101983,3.08788,3238.5,3238.0,0.426649]
[1737640102228,3.63011,3239.1,3238.0,0.426649]
[1737640102229,3.08771,3238.7,3238.0,3.514939]
[1737640102506,3.08794,3238.4,3238.0,0.426649]
[1737640102711,3.0881,3238.3,3238.0,0.426649]
[1737640102893,0.5428,3238.8,3237.9,0.7691]
[1737640103207,3.08819,3238.2,3237.9,0.7691]
[1737640104880,3.08831,3238.1,3237.9,0.7691]
[1737640105935,3.08853,3237.8,3237.6,0.8146]
[1737640106067,3.08851,3237.9,3237.6,0.8146]
[1737640106509,3.08839,3238.0,3237.6,0.8146]
[1737640106692,3.08853,3237.8,3237.6,0.8146]
[1737640106893,3.08872,3237.6,3237.1,1.2287]
[1737640107218,3.08882,3237.5,3237.2,0.431796]
[1737640107388,3.08882,3237.5,3237.1,0.8197]
[1737640107729,3.08899,3237.3,3236.8,0.8031]
[1737640108021,3.08875,3237.6,3236.9,3.08933]
[1737640108198,3.0889,3237.4,3236.8,0.8031]
[1737640108372,3.08903,3237.3,3236.8,0.8031]
[1737640108569,3.08903,3237.3,3236.8,1.233265]
[1737640108914,3.08884,3237.5,3236.8,1.233265]
[1737640109287,3.08887,3237.5,3236.8,4.322705]
[1737640109614,3.08912,3237.2,3236.8,1.233265]
[1737640109912,3.08966,3236.6,3236.3,3.18266222]
[1737640110069,3.08985,3236.4,3236.3,3.18266222]
[1737640110853,3.70820868,3236.4,3236.3,3.18266222]
[1737640111053,4.44227555,3236.4,3236.3,3.18266222]
[1737640111511,3.09101,3235.2,3234.8,0.7902]
[1737640111853,3.09119,3235.0,3234.4,0.8046]
[1737640112059,3.09119,3235.0,3234.4,1.603243]
[1737640112259,3.09131,3234.9,3234.4,1.603243]
[1737640112469,3.09131,3234.9,3234.4,1.194243]
[1737640112674,3.09141,3234.8,3234.4,0.389643]
[1737640112873,3.09157,3234.7,3234.2,0.409]
[1737640113086,3.09157,3234.7,3234.0,3.84892]
[1737640113267,3.09157,3234.6,3234.0,3.84892]
[1737640113470,3.09176,3234.4,3234.0,0.7568]
[1737640113794,3.09176,3234.4,3233.6,3.50152]
[1737640113993,3.09176,3234.4,3233.6,3.934612]
[1737640114157,3.09178,3234.4,3233.7,3.09243]
[1737640114596,3.09147,3234.7,3233.8,3.09232]
[1737640114597,3.09162,3234.6,3233.8,3.09232]
[1737640115204,3.09147,3234.7,3233.8,3.09232]
[1737640115505,6.18322,3234.6,3233.8,3.09232]
[1737640115712,3.09164,3234.6,3233.9,3.09217]
[1737640115871,1.14840546,3234.8,3233.9,3.09217]
[1737640116090,3.09164,3234.6,3233.9,3.09217]
[1737640116502,6.18328,3234.6,3233.9,3.09217]
[1737640116707,3.09164,3234.6,3233.9,3.09217]
[1737640117088,0.5428,3235.2,3234.0,0.7638]
[1737640117292,3.09115,3235.1,3234.4,3.09173]
[1737640117700,3.09112,3235.1,3234.4,3.09173]
[1737640118228,3.09128,3234.9,3234.2,3.09193]
[1737640118433,3.09134,3234.9,3234.2,3.827615]
[1737640118730,3.09134,3234.9,3234.3,3.09185]
[1737640119507,3.0914,3234.8,3234.2,0.735685]
[1737640119721,3.09134,3234.9,3234.1,3.50098]
[1737640119887,3.09138,3234.8,3234.1,3.50098]
[1737640120091,3.09138,3234.8,3234.2,3.09194]
[1737640120534,3.0913,3234.9,3234.1,0.409]
[1737640120678,3.09102,3235.2,3234.1,1.25605071]
[1737640120878,3.09102,3235.2,3234.5,3.09159]
[1737640121074,3.0911,3235.1,3234.5,3.09159]
[1737640121323,3.0912,3235.0,3234.4,3.09174]
[1737640121532,3.0912,3235.0,3234.3,3.0918]
[1737640122339,3.0912,3235.0,3234.4,3.09176]
[1737640122879,3.63346,3235.6,3234.4,3.09176]
[1737640122880,3.09115,3235.1,3234.4,3.71013]
[1737640123310,3.09115,3235.1,3234.4,3.09176]
[1737640123510,3.09128,3234.9,3234.1,4.34805071]
[1737640123698,0.5428,3235.6,3234.3,3.51684876]
[1737640123895,0.5428,3236.0,3235.3,3.09081]
[1737640124133,3.09021,3236.1,3235.5,3.09063]
[1737640124333,0.5428,3236.3,3235.3,1.079881]
[1737640124334,3.08976,3236.5,3235.7,3.09045]
[1737640124484,3.08949,3236.8,3236.2,3.08998]
[1737640124686,3.08925,3237.1,3236.5,3.08973]
[1737640124908,3.0891,3237.2,3236.5,3.08973]
[1737640125254,4.26486467,3237.6,3236.7,3.08955]
[1737640125437,1.17612467,3237.6,3236.7,3.08955]
[1737640125755,3.08938,3236.9,3236.3,3.08991]
[1737640125959,3.0895,3236.8,3236.2,3.09002]
[1737640126126,3.0895,3236.8,3236.1,3.87693]
[1737640126127,3.08954,3236.8,3236.1,3.87693]
[1737640126328,3.08956,3236.7,3236.1,0.7868]
[1737640126508,0.308954,3236.8,3236.1,0.7868]
[1737640126509,3.08984,3236.5,3236.1,0.7868]
[1737640126859,3.08984,3236.5,3236.0,0.409]
[1737640127009,3.0903,3236.0,3235.7,0.8224]
[1737640127209,0.851754,3236.8,3235.7,0.8224]
[1737640127410,3.09023,3236.0,3235.4,3.09079]
[1737640127609,3.09023,3236.0,3235.3,0.409]
[1737640127825,3.0906,3235.7,3235.3,0.409]
[1737640128155,3.09037,3235.9,3235.3,0.409]
[1737640128510,3.09059,3235.7,3235.3,0.409]
[1737640128745,3.09044,3235.8,3235.3,0.409]
[1737640128944,3.09052,3235.7,3235.3,0.409]
[1737640129148,3.09087,3235.4,3234.7,7.82933876]
[1737640129389,3.09087,3235.4,3234.7,4.31249]
[1737640129704,0.309052,3235.7,3234.7,1.2211]
[1737640129705,3.09121,3235.0,3234.7,1.2211]
[1737640129875,3.09121,3235.0,3234.7,0.409]
[1737640130304,3.09121,3235.0,3234.3,0.754]
[1737640130305,3.09145,3234.8,3234.3,0.754]
[1737640131169,3.709419,3235.0,3234.3,3.84579]
[1737640131365,3.0913,3234.9,3234.3,3.84579]